[Event "*** Titled Tuesday Blitz"]
[Site "Chess.com"]
[Date "2020.10.27"]
[Round "11"]
[White "pavelalexandru07"]
[Black "oogee"]
[Result "1-0"]
[WhiteElo "2347"]
[BlackElo "2209"]
[TimeControl "180+1"]
[EndTime "12:06:20 PDT"]
[Termination "pavelalexandru07 won by checkmate"]

1. e4 {[%clk 0:02:48.6]} 1... c5 {[%clk 0:02:59.5]} 2. Nf3 {[%clk 0:02:44.3]}
2... g6 {[%clk 0:02:59.3]} 3. d4 {[%clk 0:02:44.3]} 3... Bg7 {[%clk 0:02:58.9]}
4. dxc5 {[%clk 0:02:42.6]} 4... Nf6 {[%clk 0:02:58.6]} 5. Nc3 {[%clk 0:02:42]}
5... Qa5 {[%clk 0:02:48.2]} 6. Bd3 {[%clk 0:02:36.1]} 6... Na6 {[%clk
0:02:44.6]} 7. a3 {[%clk 0:02:32.1]} 7... Nxc5 {[%clk 0:02:43.2]} 8. b4 {[%clk
0:02:31.5]} 8... Nxd3+ {[%clk 0:02:43.3]} 9. Qxd3 {[%clk 0:02:31.6]} 9... Qc7
{[%clk 0:02:29.5]} 10. O-O {[%clk 0:02:16.7]} 10... O-O {[%clk 0:02:07.8]} 11.
Be3 {[%clk 0:02:03.6]} 11... d6 {[%clk 0:02:03.7]} 12. h3 {[%clk 0:01:58.2]}
12... Be6 {[%clk 0:02:03.1]} 13. Rfe1 {[%clk 0:01:44.4]} 13... Rfc8 {[%clk
0:01:57.2]} 14. Bd4 {[%clk 0:01:35.1]} 14... Bc4 {[%clk 0:01:49.9]} 15. Qd2
{[%clk 0:01:23.7]} 15... e5 {[%clk 0:01:44.3]} 16. Be3 {[%clk 0:01:16.3]} 16...
Rd8 {[%clk 0:01:33.6]} 17. Bg5 {[%clk 0:00:49.3]} 17... Rac8 {[%clk 0:01:19.8]}
18. Rad1 {[%clk 0:00:45.1]} 18... Be6 {[%clk 0:01:16]} 19. Nb5 {[%clk
0:00:29.7]} 19... Qb6 {[%clk 0:01:10]} 20. Nxd6 {[%clk 0:00:04.3]} 20... Rc6
{[%clk 0:00:49.2]} 21. Nc4 {[%clk 0:00:04.2]} 21... Rxd2 {[%clk 0:00:47.7]} 22.
Nxb6 {[%clk 0:00:04.5]} 22... Rxd1 {[%clk 0:00:43.2]} 23. Rxd1 {[%clk 0:00:05]}
23... axb6 {[%clk 0:00:43.4]} 24. Rd8+ {[%clk 0:00:05.2]} 24... Bf8 {[%clk
0:00:43.4]} 25. Bh6 {[%clk 0:00:05.7]} 25... Nd7 {[%clk 0:00:43.5]} 26. Nxe5
{[%clk 0:00:06.2]} 26... f6 {[%clk 0:00:31]} 27. Nxd7 {[%clk 0:00:06.5]} 27...
Kf7 {[%clk 0:00:29.6]} 28. Nxf8 {[%clk 0:00:06.2]} 28... Ke7 {[%clk 0:00:23.7]}
29. Nxe6 {[%clk 0:00:06.3]} 29... Rxe6 {[%clk 0:00:24.4]} 30. Rb8 {[%clk
0:00:06.4]} 30... Rxe4 {[%clk 0:00:23.9]} 31. Rxb7+ {[%clk 0:00:06.9]} 31... Ke6
{[%clk 0:00:23.5]} 32. Rxb6+ {[%clk 0:00:07.6]} 32... Kd5 {[%clk 0:00:23.2]} 33.
Kh2 {[%clk 0:00:07.6]} 33... Re2 {[%clk 0:00:22.2]} 34. Be3 {[%clk 0:00:07.9]}
34... Rxc2 {[%clk 0:00:22.1]} 35. Rxf6 {[%clk 0:00:08.4]} 35... Ra2 {[%clk
0:00:19.6]} 36. Rf7 {[%clk 0:00:08.8]} 36... h5 {[%clk 0:00:18.9]} 37. Rg7
{[%clk 0:00:08.8]} 37... Rxa3 {[%clk 0:00:17.5]} 38. Rxg6 {[%clk 0:00:09.5]}
38... h4 {[%clk 0:00:16.3]} 39. Rg5+ {[%clk 0:00:09.8]} 39... Ke4 {[%clk
0:00:15.7]} 40. Rg4+ {[%clk 0:00:10.3]} 40... Kd3 {[%clk 0:00:15.4]} 41. Rxh4
{[%clk 0:00:10.9]} 41... Ke2 {[%clk 0:00:14.6]} 42. b5 {[%clk 0:00:11.1]} 42...
Rb3 {[%clk 0:00:14.6]} 43. b6 {[%clk 0:00:11.6]} 43... Rb5 {[%clk 0:00:14.1]}
44. Rd4 {[%clk 0:00:11]} 44... Kf1 {[%clk 0:00:07.7]} 45. Rd1+ {[%clk
0:00:10.5]} 45... Ke2 {[%clk 0:00:07.7]} 46. Rd2+ {[%clk 0:00:10.8]} 46... Kf1
{[%clk 0:00:07.8]} 47. Rd7 {[%clk 0:00:10.7]} 47... Ke2 {[%clk 0:00:07.7]} 48.
b7 {[%clk 0:00:11]} 48... Kf1 {[%clk 0:00:07.1]} 49. Bf4 {[%clk 0:00:11.3]}
49... Rb2 {[%clk 0:00:06]} 50. b8=Q {[%clk 0:00:11.1]} 50... Rxf2 {[%clk
0:00:05.7]} 51. Qb1+ {[%clk 0:00:10.1]} 51... Ke2 {[%clk 0:00:05.9]} 52. Rd2#
{[%clk 0:00:10.5]} 1-0

[Event "*** Titled Tuesday Blitz"]
[Site "Chess.com"]
[Date "2020.10.27"]
[Round "11"]
[White "Margency"]
[Black "Zhani-Z"]
[Result "1-0"]
[WhiteElo "2668"]
[BlackElo "2532"]
[TimeControl "180+1"]
[EndTime "12:06:23 PDT"]
[Termination "Margency won on time"]

1. e4 {[%clk 0:03:00.9]} 1... e5 {[%clk 0:02:59.6]} 2. Nf3 {[%clk 0:03:01]} 2...
Nc6 {[%clk 0:03:00.1]} 3. Nc3 {[%clk 0:03:01.7]} 3... Nf6 {[%clk 0:02:57.9]} 4.
Bb5 {[%clk 0:03:02.2]} 4... Bd6 {[%clk 0:02:54.7]} 5. O-O {[%clk 0:03:01.5]}
5... O-O {[%clk 0:02:50.8]} 6. a3 {[%clk 0:02:59.2]} 6... a6 {[%clk 0:02:48.7]}
7. Bc4 {[%clk 0:02:56.5]} 7... h6 {[%clk 0:02:45.9]} 8. Ba2 {[%clk 0:02:40.8]}
8... Re8 {[%clk 0:02:41.4]} 9. Re1 {[%clk 0:02:38.7]} 9... Bc5 {[%clk
0:02:32.9]} 10. d3 {[%clk 0:02:34.3]} 10... d6 {[%clk 0:02:32.7]} 11. Be3 {[%clk
0:02:33.1]} 11... Be6 {[%clk 0:02:29]} 12. Bxc5 {[%clk 0:02:28.1]} 12... dxc5
{[%clk 0:02:29.9]} 13. Bxe6 {[%clk 0:02:27.9]} 13... Rxe6 {[%clk 0:02:29]} 14.
Nd2 {[%clk 0:02:22.5]} 14... Qd7 {[%clk 0:02:16.2]} 15. Nc4 {[%clk 0:02:14.8]}
15... Rd8 {[%clk 0:02:14.6]} 16. Ne3 {[%clk 0:02:14.2]} 16... Nd4 {[%clk
0:01:56.5]} 17. Rf1 {[%clk 0:02:04]} 17... b5 {[%clk 0:01:05.2]} 18. b4 {[%clk
0:01:51.3]} 18... Qc6 {[%clk 0:00:57.6]} 19. Ncd5 {[%clk 0:01:45.7]} 19... Qd6
{[%clk 0:00:44.1]} 20. c3 {[%clk 0:01:40.1]} 20... Nc6 {[%clk 0:00:41.3]} 21.
Nf5 {[%clk 0:01:38.7]} 21... Qf8 {[%clk 0:00:32.3]} 22. Nxc7 {[%clk 0:01:31]}
22... c4 {[%clk 0:00:26.2]} 23. Nxe6 {[%clk 0:01:20.3]} 23... fxe6 {[%clk
0:00:27.1]} 24. Ne3 {[%clk 0:01:13.2]} 24... Rxd3 {[%clk 0:00:26.7]} 25. Qc2
{[%clk 0:01:01.5]} 25... Nxe4 {[%clk 0:00:26.3]} 26. Rad1 {[%clk 0:00:40.5]}
26... Qd6 {[%clk 0:00:25.5]} 27. Rxd3 {[%clk 0:00:24.7]} 27... Qxd3 {[%clk
0:00:15.3]} 28. Qxd3 {[%clk 0:00:21.7]} 28... cxd3 {[%clk 0:00:15.3]} 29. Rd1
{[%clk 0:00:22.3]} 29... Nxc3 {[%clk 0:00:06.6]} 30. Rxd3 {[%clk 0:00:22.2]}
30... Nd4 {[%clk 0:00:07.5]} 31. f3 {[%clk 0:00:18.2]} 31... Kf8 {[%clk
0:00:07.4]} 32. Kf2 {[%clk 0:00:17.4]} 32... Nd5 {[%clk 0:00:07.6]} 33. Ng4
{[%clk 0:00:15.5]} 33... Nc6 {[%clk 0:00:06.5]} 34. Rd2 {[%clk 0:00:14.9]} 34...
Ke7 {[%clk 0:00:06.6]} 35. Rc2 {[%clk 0:00:15.1]} 35... Kd6 {[%clk 0:00:06.8]}
36. Rc5 {[%clk 0:00:15]} 36... h5 {[%clk 0:00:07.1]} 37. Ne3 {[%clk 0:00:14.8]}
37... Nb6 {[%clk 0:00:06.2]} 38. Rc3 {[%clk 0:00:13.4]} 38... Nd5 {[%clk
0:00:05.9]} 39. Rd3 {[%clk 0:00:13.3]} 39... Nd4 {[%clk 0:00:05.2]} 40. h4
{[%clk 0:00:13.3]} 40... Nf5 {[%clk 0:00:04.7]} 41. Nd1 {[%clk 0:00:12.3]} 41...
Nd4 {[%clk 0:00:04.2]} 42. Rd2 {[%clk 0:00:12.6]} 42... Nb6 {[%clk 0:00:04.3]}
43. Ne3 {[%clk 0:00:11.7]} 43... Nc4 {[%clk 0:00:04.3]} 44. Rd3 {[%clk
0:00:12.2]} 44... Nb6 {[%clk 0:00:02.7]} 45. f4 {[%clk 0:00:12.3]} 1-0

[Event "*** Titled Tuesday Blitz"]
[Site "Chess.com"]
[Date "2020.10.27"]
[Round "11"]
[White "PavelShkapenko"]
[Black "Gerodot71"]
[Result "1-0"]
[WhiteElo "2643"]
[BlackElo "2488"]
[TimeControl "180+1"]
[EndTime "12:06:24 PDT"]
[Termination "PavelShkapenko won by resignation"]

1. e4 {[%clk 0:03:00.9]} 1... e5 {[%clk 0:02:59.8]} 2. Nf3 {[%clk 0:02:59.9]}
2... Nc6 {[%clk 0:03:00.4]} 3. Bc4 {[%clk 0:02:59.7]} 3... Nf6 {[%clk
0:03:00.1]} 4. Ng5 {[%clk 0:02:58.9]} 4... d5 {[%clk 0:02:58.9]} 5. exd5 {[%clk
0:02:59]} 5... Na5 {[%clk 0:02:58.6]} 6. Bb5+ {[%clk 0:02:59]} 6... c6 {[%clk
0:02:59]} 7. dxc6 {[%clk 0:02:59.9]} 7... bxc6 {[%clk 0:02:59.9]} 8. Bd3 {[%clk
0:03:00.4]} 8... Bc5 {[%clk 0:02:58]} 9. O-O {[%clk 0:02:58.8]} 9... O-O {[%clk
0:02:56.5]} 10. Nc3 {[%clk 0:02:53.1]} 10... Bb6 {[%clk 0:02:53.3]} 11. Nge4
{[%clk 0:02:49.6]} 11... Nxe4 {[%clk 0:02:52.1]} 12. Bxe4 {[%clk 0:02:49]} 12...
f5 {[%clk 0:02:51.4]} 13. Bf3 {[%clk 0:02:49.4]} 13... e4 {[%clk 0:02:51.7]} 14.
Be2 {[%clk 0:02:49.9]} 14... Qh4 {[%clk 0:02:27.4]} 15. d3 {[%clk 0:02:48.1]}
15... Be6 {[%clk 0:02:18.1]} 16. dxe4 {[%clk 0:02:46.6]} 16... fxe4 {[%clk
0:02:19]} 17. Be3 {[%clk 0:02:46.4]} 17... Rad8 {[%clk 0:02:13]} 18. Qe1 {[%clk
0:02:42.5]} 18... Bc7 {[%clk 0:02:05.8]} 19. g3 {[%clk 0:02:41.5]} 19... Qh3
{[%clk 0:02:06.3]} 20. Nxe4 {[%clk 0:02:36.7]} 20... Bd5 {[%clk 0:02:03.4]} 21.
f3 {[%clk 0:02:36.2]} 21... Nc4 {[%clk 0:01:59.2]} 22. Bxc4 {[%clk 0:01:50.4]}
22... Bxc4 {[%clk 0:02:00.1]} 23. Rf2 {[%clk 0:01:50.7]} 23... Rde8 {[%clk
0:01:51.1]} 24. Qc3 {[%clk 0:01:23.6]} 24... Bd5 {[%clk 0:01:47.9]} 25. Raf1
{[%clk 0:01:24]} 25... h6 {[%clk 0:01:08]} 26. Bc5 {[%clk 0:01:22.8]} 26... Rf7
{[%clk 0:00:58.9]} 27. b3 {[%clk 0:01:00.4]} 27... Be5 {[%clk 0:00:40.8]} 28.
Qd3 {[%clk 0:00:59.7]} 28... Rd7 {[%clk 0:00:35.5]} 29. Qe2 {[%clk 0:00:55.9]}
29... Bb8 {[%clk 0:00:33.5]} 30. c4 {[%clk 0:00:55]} 30... Bf7 {[%clk
0:00:28.8]} 31. Rd1 {[%clk 0:00:52]} 31... Red8 {[%clk 0:00:26]} 32. Rxd7 {[%clk
0:00:49.6]} 32... Rxd7 {[%clk 0:00:26.9]} 33. Qf1 {[%clk 0:00:47.4]} 33... Qf5
{[%clk 0:00:25.2]} 34. Be3 {[%clk 0:00:44.7]} 34... Bg6 {[%clk 0:00:24.8]} 35.
Rd2 {[%clk 0:00:44]} 35... Rxd2 {[%clk 0:00:18.2]} 36. Nxd2 {[%clk 0:00:43.7]}
36... Qc2 {[%clk 0:00:17.4]} 37. a4 {[%clk 0:00:40.1]} 37... Bd3 {[%clk
0:00:16.6]} 38. Qa1 {[%clk 0:00:38.1]} 38... a5 {[%clk 0:00:13]} 39. Qd4 {[%clk
0:00:22.9]} 39... Bc7 {[%clk 0:00:08.5]} 40. Kg2 {[%clk 0:00:19]} 40... Bg6
{[%clk 0:00:06.9]} 41. Qd7 {[%clk 0:00:18]} 41... Be5 {[%clk 0:00:05]} 42. Qe6+
{[%clk 0:00:18.1]} 42... Kh7 {[%clk 0:00:04.2]} 43. Qxe5 {[%clk 0:00:18.3]}
43... c5 {[%clk 0:00:03.9]} 44. Qxc5 {[%clk 0:00:17.9]} 44... h5 {[%clk
0:00:04.8]} 45. h4 {[%clk 0:00:17.2]} 45... Bf5 {[%clk 0:00:04.3]} 46. Qxa5
{[%clk 0:00:16.7]} 46... Qd3 {[%clk 0:00:04]} 47. Kf2 {[%clk 0:00:15.5]} 47...
Bh3 {[%clk 0:00:03.1]} 48. Qxh5+ {[%clk 0:00:15.1]} 48... Kg8 {[%clk 0:00:03.7]}
49. Qe8+ {[%clk 0:00:15.1]} 49... Kh7 {[%clk 0:00:03.9]} 50. Qe4+ {[%clk
0:00:15.7]} 1-0

[Event "*** Titled Tuesday Blitz"]
[Site "Chess.com"]
[Date "2020.10.27"]
[Round "11"]
[White "emiliochess"]
[Black "IMprovidence"]
[Result "0-1"]
[WhiteElo "2302"]
[BlackElo "2430"]
[TimeControl "180+1"]
[EndTime "12:06:25 PDT"]
[Termination "IMprovidence won by checkmate"]

1. d4 {[%clk 0:03:00.9]} 1... Nf6 {[%clk 0:02:59.7]} 2. Bf4 {[%clk 0:03:01.4]}
2... d5 {[%clk 0:02:59.5]} 3. e3 {[%clk 0:03:00.4]} 3... c5 {[%clk 0:02:59.8]}
4. c3 {[%clk 0:02:59.9]} 4... Nc6 {[%clk 0:03:00.1]} 5. Bd3 {[%clk 0:03:00.1]}
5... Bg4 {[%clk 0:02:59.5]} 6. f3 {[%clk 0:03:00.6]} 6... Bd7 {[%clk 0:02:57.7]}
7. Nd2 {[%clk 0:02:59.2]} 7... e6 {[%clk 0:02:57.6]} 8. Qe2 {[%clk 0:02:54.3]}
8... Be7 {[%clk 0:02:55.4]} 9. Nh3 {[%clk 0:02:53.1]} 9... O-O {[%clk
0:02:54.2]} 10. Nf2 {[%clk 0:02:52.9]} 10... Re8 {[%clk 0:02:54.5]} 11. dxc5
{[%clk 0:02:43.6]} 11... Bxc5 {[%clk 0:02:54.1]} 12. e4 {[%clk 0:02:43.7]} 12...
e5 {[%clk 0:02:49.1]} 13. Bg5 {[%clk 0:02:42.3]} 13... d4 {[%clk 0:02:47.6]} 14.
O-O {[%clk 0:02:31.3]} 14... dxc3 {[%clk 0:02:46.4]} 15. bxc3 {[%clk 0:02:32.2]}
15... Be7 {[%clk 0:02:38.7]} 16. Nc4 {[%clk 0:02:17]} 16... Nh5 {[%clk
0:02:24.9]} 17. Bxe7 {[%clk 0:02:17.9]} 17... Qxe7 {[%clk 0:02:24.7]} 18. g3
{[%clk 0:02:16.3]} 18... Nf6 {[%clk 0:02:22.1]} 19. Rfd1 {[%clk 0:02:15]} 19...
Red8 {[%clk 0:02:21]} 20. a4 {[%clk 0:02:12]} 20... Rac8 {[%clk 0:02:20.2]} 21.
Ne3 {[%clk 0:02:11.6]} 21... Be6 {[%clk 0:02:18.4]} 22. Bb5 {[%clk 0:02:08.3]}
22... a6 {[%clk 0:02:14.8]} 23. Bc4 {[%clk 0:02:03.7]} 23... Bxc4 {[%clk
0:02:09.6]} 24. Qxc4 {[%clk 0:01:58]} 24... Nd4 {[%clk 0:02:05.7]} 25. Qb4
{[%clk 0:01:51.5]} 25... Qxb4 {[%clk 0:02:01.7]} 26. cxb4 {[%clk 0:01:52.4]}
26... Nxf3+ {[%clk 0:02:01.3]} 27. Kg2 {[%clk 0:01:51.2]} 27... Nd2 {[%clk
0:01:44.5]} 28. b5 {[%clk 0:01:44.2]} 28... Ndxe4 {[%clk 0:01:38.2]} 29. Nxe4
{[%clk 0:01:41.3]} 29... Nxe4 {[%clk 0:01:37.7]} 30. Nf5 {[%clk 0:01:39.6]}
30... Kf8 {[%clk 0:01:30.2]} 31. Rac1 {[%clk 0:01:29.7]} 31... g6 {[%clk
0:01:15.2]} 32. Nh6 {[%clk 0:01:24]} 32... axb5 {[%clk 0:00:49.9]} 33. axb5
{[%clk 0:01:23.4]} 33... Rxc1 {[%clk 0:00:40.9]} 34. Rxc1 {[%clk 0:01:09.6]}
34... Rd2+ {[%clk 0:00:39.2]} 35. Kh3 {[%clk 0:01:09]} 35... Kg7 {[%clk
0:00:25.6]} 36. Ng4 {[%clk 0:01:07.5]} 36... Ng5+ {[%clk 0:00:25.6]} 37. Kh4
{[%clk 0:01:06.9]} 37... Nf3+ {[%clk 0:00:21.5]} 38. Kh3 {[%clk 0:01:07]} 38...
h5 {[%clk 0:00:20.2]} 39. Rc7 {[%clk 0:00:58.6]} 39... hxg4+ {[%clk 0:00:19.8]}
40. Kxg4 {[%clk 0:00:59.5]} 40... Nxh2+ {[%clk 0:00:19.4]} 41. Kh3 {[%clk
0:00:59.3]} 41... Nf3 {[%clk 0:00:18.3]} 42. Rxb7 {[%clk 0:00:59.8]} 42... e4
{[%clk 0:00:18.5]} 43. Re7 {[%clk 0:00:59.8]} 43... Re2 {[%clk 0:00:17.3]} 44.
b6 {[%clk 0:00:58.3]} 44... Kf6 {[%clk 0:00:17.5]} 45. b7 {[%clk 0:00:57.7]}
45... Rh2+ {[%clk 0:00:17.1]} 46. Kg4 {[%clk 0:00:57.9]} 46... Rb2 {[%clk
0:00:17.3]} 47. Rxe4 {[%clk 0:00:57.2]} 47... Nh2+ {[%clk 0:00:17.4]} 48. Kh3
{[%clk 0:00:57.3]} 48... Rxb7 {[%clk 0:00:16.6]} 49. Kxh2 {[%clk 0:00:57]} 49...
Kg5 {[%clk 0:00:17.1]} 50. Kh3 {[%clk 0:00:55.8]} 50... f5 {[%clk 0:00:17.4]}
51. Rc4 {[%clk 0:00:55.7]} 51... Rb2 {[%clk 0:00:17.4]} 52. Ra4 {[%clk
0:00:55.5]} 52... Re2 {[%clk 0:00:17.6]} 53. Rb4 {[%clk 0:00:55.6]} 53... Re3
{[%clk 0:00:18]} 54. Rc4 {[%clk 0:00:55.2]} 54... Re4 {[%clk 0:00:18.4]} 55. Rc3
{[%clk 0:00:54.8]} 55... Re1 {[%clk 0:00:18.7]} 56. Rc4 {[%clk 0:00:54.6]} 56...
Re2 {[%clk 0:00:18.7]} 57. Rd4 {[%clk 0:00:54.3]} 57... Kf6 {[%clk 0:00:18.8]}
58. Ra4 {[%clk 0:00:54.1]} 58... g5 {[%clk 0:00:18.9]} 59. Rb4 {[%clk
0:00:53.7]} 59... g4+ {[%clk 0:00:19.1]} 60. Rxg4 {[%clk 0:00:43.5]} 60... fxg4+
{[%clk 0:00:20]} 61. Kxg4 {[%clk 0:00:43.5]} 61... Re4+ {[%clk 0:00:19.8]} 62.
Kf3 {[%clk 0:00:42.7]} 62... Kf5 {[%clk 0:00:20.4]} 63. Kf2 {[%clk 0:00:41.9]}
63... Rg4 {[%clk 0:00:21.3]} 64. Kf3 {[%clk 0:00:42.7]} 64... Ra4 {[%clk
0:00:21]} 65. Ke3 {[%clk 0:00:42.5]} 65... Kg4 {[%clk 0:00:20.7]} 66. Kf2 {[%clk
0:00:42.9]} 66... Ra3 {[%clk 0:00:20.8]} 67. Kg2 {[%clk 0:00:40.9]} 67... Ra2+
{[%clk 0:00:21.1]} 68. Kh1 {[%clk 0:00:41.8]} 68... Kxg3 {[%clk 0:00:21.2]} 69.
Kg1 {[%clk 0:00:42.6]} 69... Ra1# {[%clk 0:00:21.8]} 0-1

[Event "*** Titled Tuesday Blitz"]
[Site "Chess.com"]
[Date "2020.10.27"]
[Round "11"]
[White "TheChessChannel"]
[Black "Jungle_Jaguar"]
[Result "1-0"]
[WhiteElo "2454"]
[BlackElo "2602"]
[TimeControl "180+1"]
[EndTime "12:06:27 PDT"]
[Termination "TheChessChannel won by checkmate"]

1. c4 {[%clk 0:03:00.9]} 1... Nf6 {[%clk 0:02:57.5]} 2. g3 {[%clk 0:03:01]} 2...
g6 {[%clk 0:02:55.1]} 3. Bg2 {[%clk 0:03:01.2]} 3... Bg7 {[%clk 0:02:55.6]} 4.
Nc3 {[%clk 0:03:01.6]} 4... O-O {[%clk 0:02:56]} 5. d3 {[%clk 0:03:02.1]} 5...
d6 {[%clk 0:02:56.4]} 6. Bg5 {[%clk 0:03:02]} 6... h6 {[%clk 0:02:54.1]} 7. Bd2
{[%clk 0:03:01.5]} 7... Nc6 {[%clk 0:02:53.8]} 8. Qc1 {[%clk 0:02:59.3]} 8...
Kh7 {[%clk 0:02:53.7]} 9. h4 {[%clk 0:02:58.3]} 9... e5 {[%clk 0:02:53.9]} 10.
Nf3 {[%clk 0:02:29]} 10... Nd4 {[%clk 0:02:49.9]} 11. Nxd4 {[%clk 0:02:26.2]}
11... exd4 {[%clk 0:02:50.2]} 12. Nb5 {[%clk 0:02:23.9]} 12... c5 {[%clk
0:02:45.6]} 13. Bf4 {[%clk 0:02:20.3]} 13... Ne8 {[%clk 0:02:37.4]} 14. Bf3
{[%clk 0:01:55.3]} 14... a6 {[%clk 0:02:36.1]} 15. Na3 {[%clk 0:01:52.5]} 15...
Nf6 {[%clk 0:02:36.7]} 16. Nc2 {[%clk 0:01:44.4]} 16... Re8 {[%clk 0:02:35.7]}
17. b4 {[%clk 0:01:42.2]} 17... Bg4 {[%clk 0:02:27.7]} 18. Bxg4 {[%clk
0:01:39.3]} 18... Nxg4 {[%clk 0:02:28.6]} 19. f3 {[%clk 0:01:36.8]} 19... Ne3
{[%clk 0:02:17.5]} 20. Nxe3 {[%clk 0:01:34.2]} 20... dxe3 {[%clk 0:02:17.7]} 21.
Rb1 {[%clk 0:01:33.2]} 21... Bd4 {[%clk 0:02:02.2]} 22. bxc5 {[%clk 0:01:29.7]}
22... dxc5 {[%clk 0:01:45.8]} 23. Rxb7 {[%clk 0:01:29.3]} 23... Re7 {[%clk
0:01:46.4]} 24. Rxe7 {[%clk 0:01:23.6]} 24... Qxe7 {[%clk 0:01:47.3]} 25. Kf1
{[%clk 0:01:15.8]} 25... Ra7 {[%clk 0:01:25.3]} 26. Kg2 {[%clk 0:01:11.3]} 26...
Rb7 {[%clk 0:01:25.2]} 27. Qd1 {[%clk 0:01:07.8]} 27... Rb2 {[%clk 0:01:24.9]}
28. a3 {[%clk 0:01:03]} 28... Qd8 {[%clk 0:01:18.1]} 29. g4 {[%clk 0:01:00.5]}
29... Qa5 {[%clk 0:01:17.5]} 30. Kg3 {[%clk 0:00:57.2]} 30... Qxa3 {[%clk
0:00:48.6]} 31. Qc1 {[%clk 0:00:53.7]} 31... Qa2 {[%clk 0:00:41.8]} 32. Bxe3
{[%clk 0:00:50.2]} 32... Rxe2 {[%clk 0:00:33.1]} 33. Bxd4 {[%clk 0:00:47.2]}
33... cxd4 {[%clk 0:00:21.4]} 34. Qf4 {[%clk 0:00:41.8]} 34... Kg7 {[%clk
0:00:21.4]} 35. Qxd4+ {[%clk 0:00:39.5]} 35... Kg8 {[%clk 0:00:19.4]} 36. g5
{[%clk 0:00:36]} 36... Rg2+ {[%clk 0:00:18]} 37. Kf4 {[%clk 0:00:34.1]} 37...
Qa5 {[%clk 0:00:13.7]} 38. gxh6 {[%clk 0:00:31.1]} 38... Qf5+ {[%clk 0:00:07.2]}
39. Ke3 {[%clk 0:00:28.2]} 39... Qe6+ {[%clk 0:00:06.1]} 40. Qe4 {[%clk
0:00:25]} 40... Qb6+ {[%clk 0:00:05.9]} 41. d4 {[%clk 0:00:22.7]} 41... Rb2
{[%clk 0:00:05.1]} 42. h5 {[%clk 0:00:17.9]} 42... Rb3+ {[%clk 0:00:04.6]} 43.
Kf2 {[%clk 0:00:15]} 43... Rb2+ {[%clk 0:00:05.2]} 44. Kg3 {[%clk 0:00:12.7]}
44... Qc7+ {[%clk 0:00:05.6]} 45. f4 {[%clk 0:00:09.2]} 45... Qxc4 {[%clk
0:00:04.5]} 46. h7+ {[%clk 0:00:06.4]} 46... Kh8 {[%clk 0:00:03]} 47. Qe5+
{[%clk 0:00:03.8]} 47... Kxh7 {[%clk 0:00:03.5]} 48. hxg6+ {[%clk 0:00:03.3]}
48... Kxg6 {[%clk 0:00:04.4]} 49. Qg5# {[%clk 0:00:02]} 1-0

[Event "*** Titled Tuesday Blitz"]
[Site "Chess.com"]
[Date "2020.10.27"]
[Round "11"]
[White "TomiLen"]
[Black "UCantHandleDenker"]
[Result "1/2-1/2"]
[WhiteElo "2628"]
[BlackElo "2518"]
[TimeControl "180+1"]
[EndTime "12:06:28 PDT"]
[Termination "Game drawn by repetition"]

1. d4 {[%clk 0:03:00.9]} 1... Nf6 {[%clk 0:02:57.4]} 2. Bg5 {[%clk 0:03:00.9]}
2... g6 {[%clk 0:02:57]} 3. Bxf6 {[%clk 0:03:00.7]} 3... exf6 {[%clk 0:02:57.9]}
4. c4 {[%clk 0:03:00.7]} 4... h5 {[%clk 0:02:56.9]} 5. Nc3 {[%clk 0:03:00.2]}
5... f5 {[%clk 0:02:57.4]} 6. e3 {[%clk 0:02:59.6]} 6... Bh6 {[%clk 0:02:57.6]}
7. g3 {[%clk 0:02:58.7]} 7... d6 {[%clk 0:02:58.1]} 8. Bg2 {[%clk 0:02:58.7]}
8... Nd7 {[%clk 0:02:58.7]} 9. Nge2 {[%clk 0:02:57.5]} 9... c6 {[%clk
0:02:57.9]} 10. b4 {[%clk 0:02:56.9]} 10... Nf6 {[%clk 0:02:57.9]} 11. b5 {[%clk
0:02:55.1]} 11... Bd7 {[%clk 0:02:57.8]} 12. Rb1 {[%clk 0:02:54.4]} 12... h4
{[%clk 0:02:54.4]} 13. a4 {[%clk 0:02:52.4]} 13... Rb8 {[%clk 0:02:49]} 14. Qb3
{[%clk 0:02:45.8]} 14... O-O {[%clk 0:02:46.5]} 15. O-O {[%clk 0:02:45.1]} 15...
hxg3 {[%clk 0:02:46]} 16. hxg3 {[%clk 0:02:44.8]} 16... Rc8 {[%clk 0:02:44.7]}
17. Ra1 {[%clk 0:02:38.5]} 17... Ng4 {[%clk 0:02:42.1]} 18. Nf4 {[%clk
0:02:36.3]} 18... Re8 {[%clk 0:02:42.4]} 19. Nce2 {[%clk 0:02:31.2]} 19... Qf6
{[%clk 0:02:35]} 20. a5 {[%clk 0:02:29.7]} 20... Qh8 {[%clk 0:02:33.3]} 21. Rfe1
{[%clk 0:02:23.3]} 21... Bg5 {[%clk 0:02:01.2]} 22. a6 {[%clk 0:02:16.2]} 22...
Qh2+ {[%clk 0:01:56.5]} 23. Kf1 {[%clk 0:02:15.7]} 23... bxa6 {[%clk 0:01:56.3]}
24. Rxa6 {[%clk 0:02:04.6]} 24... cxb5 {[%clk 0:01:54.7]} 25. cxb5 {[%clk
0:02:04.4]} 25... Bxf4 {[%clk 0:01:18.7]} 26. Nxf4 {[%clk 0:01:42.1]} 26... Rb8
{[%clk 0:01:13.8]} 27. Rxa7 {[%clk 0:01:21.2]} 27... Bxb5+ {[%clk 0:01:09.7]}
28. Nd3 {[%clk 0:01:17.7]} 28... Rf8 {[%clk 0:01:04]} 29. Qd1 {[%clk 0:01:06.6]}
29... Rfc8 {[%clk 0:01:00.6]} 30. Ra3 {[%clk 0:01:06]} 30... d5 {[%clk
0:00:50.9]} 31. Qd2 {[%clk 0:01:01.3]} 31... Bc4 {[%clk 0:00:50.4]} 32. Rea1
{[%clk 0:00:53.7]} 32... Rb3 {[%clk 0:00:47.8]} 33. Rxb3 {[%clk 0:00:45.4]}
33... Bxb3 {[%clk 0:00:48.6]} 34. Rc1 {[%clk 0:00:45.4]} 34... Rxc1+ {[%clk
0:00:45.9]} 35. Nxc1 {[%clk 0:00:42.3]} 35... Bc4+ {[%clk 0:00:46.8]} 36. Nd3
{[%clk 0:00:40.7]} 36... Kg7 {[%clk 0:00:44.8]} 37. Qe2 {[%clk 0:00:24.6]} 37...
Qh8 {[%clk 0:00:33.6]} 38. Qd2 {[%clk 0:00:20.6]} 38... Qb8 {[%clk 0:00:32.3]}
39. Bf3 {[%clk 0:00:19.2]} 39... Nh2+ {[%clk 0:00:30]} 40. Kg2 {[%clk 0:00:19]}
40... Nxf3 {[%clk 0:00:23.1]} 41. Kxf3 {[%clk 0:00:19.5]} 41... Bxd3 {[%clk
0:00:19.1]} 42. Qxd3 {[%clk 0:00:19.3]} 42... Qh8 {[%clk 0:00:19.5]} 43. Ke2
{[%clk 0:00:18.4]} 43... Qh5+ {[%clk 0:00:19]} 44. Kd2 {[%clk 0:00:18.6]} 44...
Qf3 {[%clk 0:00:19.1]} 45. Qe2 {[%clk 0:00:18.6]} 45... Qe4 {[%clk 0:00:19.2]}
46. Qd3 {[%clk 0:00:17.5]} 46... Qf3 {[%clk 0:00:19.4]} 47. Ke1 {[%clk
0:00:17.8]} 47... Kf6 {[%clk 0:00:18]} 48. Qe2 {[%clk 0:00:17.5]} 48... Qe4
{[%clk 0:00:17.6]} 49. Qa6+ {[%clk 0:00:17.2]} 49... Kg7 {[%clk 0:00:17.3]} 50.
Qa3 {[%clk 0:00:16.1]} 50... Qh1+ {[%clk 0:00:16.1]} 51. Ke2 {[%clk 0:00:16.1]}
51... Qe4 {[%clk 0:00:17]} 52. Qd3 {[%clk 0:00:15.6]} 52... Qg4+ {[%clk
0:00:16.1]} 53. Kd2 {[%clk 0:00:14.8]} 53... Qf3 {[%clk 0:00:16.6]} 1/2-1/2